[Event "Early-Titled-Tuesday-Blitz-August-29-2023"]
[Site "Chess.com"]
[Date "2023.08.29"]
[Round "8"]
[White "aranibos"]
[Black "salzikis"]
[Result "1-0"]
[WhiteElo "2299"]
[BlackElo "2400"]
[TimeControl "180+1"]
[EndTime "9:25:37 PDT"]
[Termination "aranibos won by resignation"]

1. Nf3 {[%clk 0:03:00.9]} 1... Nf6 {[%clk 0:02:59.7]} 2. d4 {[%clk 0:02:59.7]}
2... d5 {[%clk 0:02:59.9]} 3. Bg5 {[%clk 0:02:58.3]} 3... e6 {[%clk 0:02:57.9]}
4. Nbd2 {[%clk 0:02:57.2]} 4... Nbd7 {[%clk 0:02:53.7]} 5. c3 {[%clk 0:02:57]}
5... Be7 {[%clk 0:02:53.1]} 6. e3 {[%clk 0:02:54.6]} 6... Ne4 {[%clk 0:02:51.1]}
7. Nxe4 {[%clk 0:02:51.5]} 7... dxe4 {[%clk 0:02:50.5]} 8. Bxe7 {[%clk
0:02:51.8]} 8... Qxe7 {[%clk 0:02:49.7]} 9. Nd2 {[%clk 0:02:52.4]} 9... f5
{[%clk 0:02:50.4]} 10. Qh5+ {[%clk 0:02:49.7]} 10... g6 {[%clk 0:02:49.8]} 11.
Qh6 {[%clk 0:02:43.7]} 11... c6 {[%clk 0:02:48.7]} 12. Bc4 {[%clk 0:02:37.9]}
12... e5 {[%clk 0:02:41.6]} 13. Bb3 {[%clk 0:02:13.7]} 13... exd4 {[%clk
0:02:37.9]} 14. cxd4 {[%clk 0:02:12.6]} 14... Nf6 {[%clk 0:02:36.4]} 15. h3
{[%clk 0:02:01]} 15... Be6 {[%clk 0:02:36.1]} 16. Qf4 {[%clk 0:01:49.9]} 16...
Nd5 {[%clk 0:02:29.7]} 17. Qe5 {[%clk 0:01:47.5]} 17... Kf7 {[%clk 0:02:28.6]}
18. Nc4 {[%clk 0:01:42.6]} 18... Rad8 {[%clk 0:02:28.3]} 19. O-O {[%clk
0:01:23.1]} 19... Rhe8 {[%clk 0:02:23]} 20. Qg3 {[%clk 0:01:21.7]} 20... Kg7
{[%clk 0:02:20.1]} 21. Ne5 {[%clk 0:01:21.1]} 21... Nf6 {[%clk 0:02:19.7]} 22.
f4 {[%clk 0:01:17.6]} 22... exf3 {[%clk 0:02:16.7]} 23. gxf3 {[%clk 0:01:17.9]}
23... Nh5 {[%clk 0:02:08.6]} 24. Qg2 {[%clk 0:01:17.2]} 24... f4 {[%clk
0:02:08.1]} 25. Rae1 {[%clk 0:01:09.6]} 25... a6 {[%clk 0:02:06.9]} 26. Ng4
{[%clk 0:01:03.6]} 26... Bxb3 {[%clk 0:02:04.4]} 27. axb3 {[%clk 0:01:01.7]}
27... fxe3 {[%clk 0:02:00.3]} 28. Rxe3 {[%clk 0:01:01]} 28... Qd6 {[%clk
0:01:56.7]} 29. Rxe8 {[%clk 0:00:58.4]} 29... Qxd4+ {[%clk 0:01:56.5]} 30. Re3
{[%clk 0:00:56.5]} 30... Nf4 {[%clk 0:01:49.5]} 31. Qh2 {[%clk 0:00:46.6]} 31...
h5 {[%clk 0:01:44]} 32. Kh1 {[%clk 0:00:38.7]} 32... hxg4 {[%clk 0:01:40.5]} 33.
Re7+ {[%clk 0:00:37.7]} 33... Kf8 {[%clk 0:01:33.4]} 34. Re4 {[%clk 0:00:37.3]}
34... Qd3 {[%clk 0:01:24.9]} 35. Qxf4+ {[%clk 0:00:36.4]} 35... Kg8 {[%clk
0:01:25.3]} 36. Rfe1 {[%clk 0:00:35.1]} 36... gxf3 {[%clk 0:01:19.2]} 37. Re8+
{[%clk 0:00:32.5]} 37... Rxe8 {[%clk 0:01:18.5]} 38. Rxe8+ {[%clk 0:00:31.3]}
38... Kg7 {[%clk 0:01:17.9]} 39. Qf8+ {[%clk 0:00:29.2]} 1-0

[Event "Early-Titled-Tuesday-Blitz-August-29-2023"]
[Site "Chess.com"]
[Date "2023.08.29"]
[Round "8"]
[White "SaqoChess_Twitch"]
[Black "MarcoRiehle"]
[Result "0-1"]
[WhiteElo "2627"]
[BlackElo "2831"]
[TimeControl "180+1"]
[EndTime "9:25:41 PDT"]
[Termination "MarcoRiehle won by resignation"]

1. d4 {[%clk 0:03:00.9]} 1... d5 {[%clk 0:02:59.2]} 2. c4 {[%clk 0:03:00.7]}
2... e6 {[%clk 0:02:59.6]} 3. Nc3 {[%clk 0:03:00.7]} 3... c5 {[%clk 0:02:59.6]}
4. cxd5 {[%clk 0:02:57.9]} 4... cxd4 {[%clk 0:02:59.9]} 5. Qxd4 {[%clk
0:02:56.8]} 5... Nc6 {[%clk 0:02:59.5]} 6. Qa4 {[%clk 0:02:55.1]} 6... exd5
{[%clk 0:03:00]} 7. e3 {[%clk 0:02:54.7]} 7... d4 {[%clk 0:02:59.6]} 8. exd4
{[%clk 0:02:54.5]} 8... Qxd4 {[%clk 0:03:00.5]} 9. Qxd4 {[%clk 0:02:54]} 9...
Nxd4 {[%clk 0:02:59.9]} 10. Bd3 {[%clk 0:02:42.9]} 10... Bf5 {[%clk 0:02:55.2]}
11. Bxf5 {[%clk 0:02:42.7]} 11... Nxf5 {[%clk 0:02:56.1]} 12. Nge2 {[%clk
0:02:43.1]} 12... O-O-O {[%clk 0:02:54.2]} 13. O-O {[%clk 0:02:42.4]} 13... Nf6
{[%clk 0:02:54.5]} 14. Bg5 {[%clk 0:02:41.9]} 14... Be7 {[%clk 0:02:53.4]} 15.
Rac1 {[%clk 0:02:37.1]} 15... Kb8 {[%clk 0:02:51.7]} 16. Bf4+ {[%clk 0:02:35.2]}
16... Bd6 {[%clk 0:02:51.6]} 17. Bg5 {[%clk 0:02:32]} 17... Be5 {[%clk
0:02:48.1]} 18. f4 {[%clk 0:02:28]} 18... Bc7 {[%clk 0:02:38.6]} 19. Bxf6 {[%clk
0:02:26.9]} 19... gxf6 {[%clk 0:02:39.5]} 20. Ng3 {[%clk 0:02:25.7]} 20... Ne3
{[%clk 0:02:35.9]} 21. Rfe1 {[%clk 0:02:21.4]} 21... Bxf4 {[%clk 0:02:33.9]} 22.
Nce2 {[%clk 0:02:10.4]} 22... Bh6 {[%clk 0:02:29.5]} 23. Rc5 {[%clk 0:02:04.2]}
23... Rd2 {[%clk 0:02:24.1]} 24. Ne4 {[%clk 0:01:54.5]} 24... Rxb2 {[%clk
0:02:22.4]} 25. Nxf6 {[%clk 0:01:54.5]} 25... Nc2 {[%clk 0:02:18.8]} 26. Nd7+
{[%clk 0:01:01.7]} 26... Ka8 {[%clk 0:02:18.5]} 27. Rxc2 {[%clk 0:00:49.9]}
27... Rxc2 {[%clk 0:02:18.3]} 28. Kf2 {[%clk 0:00:46.5]} 28... Re8 {[%clk
0:02:16]} 29. Nf6 {[%clk 0:00:41.6]} 29... Re6 {[%clk 0:02:13.3]} 30. Ng4 {[%clk
0:00:41.3]} 30... Bd2 {[%clk 0:02:13.2]} 31. Rd1 {[%clk 0:00:40.4]} 31... Ba5
{[%clk 0:02:12.5]} 32. Ne3 {[%clk 0:00:37.5]} 32... Bb6 {[%clk 0:02:11.6]} 33.
Rd8+ {[%clk 0:00:31.1]} 33... Bxd8 {[%clk 0:02:11]} 34. Nxc2 {[%clk 0:00:32]}
34... Ra6 {[%clk 0:02:07.8]} 35. a3 {[%clk 0:00:27.8]} 35... Be7 {[%clk
0:02:07.6]} 36. g4 {[%clk 0:00:27.2]} 36... Bxa3 {[%clk 0:02:06.8]} 37. h4
{[%clk 0:00:27.6]} 37... Bc5+ {[%clk 0:02:05.5]} 38. Kf3 {[%clk 0:00:27.7]}
38... Rf6+ {[%clk 0:02:05]} 39. Ke4 {[%clk 0:00:26]} 39... Re6+ {[%clk
0:02:05.5]} 40. Kd3 {[%clk 0:00:26.4]} 40... b5 {[%clk 0:02:05]} 41. Nf4 {[%clk
0:00:25.7]} 41... Rd6+ {[%clk 0:02:03.8]} 42. Ke4 {[%clk 0:00:23.4]} 42... a5
{[%clk 0:02:01.5]} 43. Nd3 {[%clk 0:00:22.5]} 43... Bb6 {[%clk 0:01:58.7]} 44.
Na3 {[%clk 0:00:22.2]} 44... Rd4+ {[%clk 0:01:56.8]} 45. Ke5 {[%clk 0:00:18]}
45... Rxd3 {[%clk 0:01:55.8]} 46. Nxb5 {[%clk 0:00:18.7]} 46... a4 {[%clk
0:01:55.7]} 47. g5 {[%clk 0:00:18.9]} 47... a3 {[%clk 0:01:55.9]} 48. Nxa3
{[%clk 0:00:18.8]} 48... Rxa3 {[%clk 0:01:55.4]} 49. Kf5 {[%clk 0:00:19.5]}
49... Rf3+ {[%clk 0:01:54.3]} 50. Kg4 {[%clk 0:00:19.6]} 50... Rf2 {[%clk
0:01:54.6]} 51. Kh5 {[%clk 0:00:20.1]} 51... Rh2 {[%clk 0:01:53.6]} 52. g6
{[%clk 0:00:20.3]} 52... hxg6+ {[%clk 0:01:53]} 53. Kh6 {[%clk 0:00:20.5]} 53...
Rxh4+ {[%clk 0:01:49.4]} 54. Kg7 {[%clk 0:00:21.4]} 0-1

[Event "Early-Titled-Tuesday-Blitz-August-29-2023"]
[Site "Chess.com"]
[Date "2023.08.29"]
[Round "8"]
[White "Khromkin"]
[Black "RIPOL"]
[Result "1-0"]
[WhiteElo "2346"]
[BlackElo "2435"]
[TimeControl "180+1"]
[EndTime "9:25:43 PDT"]
[Termination "Khromkin won by resignation"]

1. d4 {[%clk 0:02:59.8]} 1... Nf6 {[%clk 0:02:58.8]} 2. c4 {[%clk 0:03:00.3]}
2... e6 {[%clk 0:02:58.7]} 3. Nf3 {[%clk 0:03:00.9]} 3... d5 {[%clk 0:02:57.5]}
4. Nc3 {[%clk 0:03:00.6]} 4... Bb4 {[%clk 0:02:56.7]} 5. Qa4+ {[%clk 0:03:00.7]}
5... Nc6 {[%clk 0:02:55.9]} 6. Bd2 {[%clk 0:03:01.3]} 6... O-O {[%clk
0:02:51.5]} 7. e3 {[%clk 0:03:01.3]} 7... Bd7 {[%clk 0:02:47.4]} 8. Qc2 {[%clk
0:03:01.2]} 8... a6 {[%clk 0:02:44.4]} 9. a3 {[%clk 0:02:59.6]} 9... Bxc3 {[%clk
0:02:37.5]} 10. Bxc3 {[%clk 0:02:59.3]} 10... dxc4 {[%clk 0:02:36.2]} 11. Bxc4
{[%clk 0:02:58.8]} 11... b5 {[%clk 0:02:35.8]} 12. Bd3 {[%clk 0:02:58.3]} 12...
Re8 {[%clk 0:02:33.3]} 13. O-O {[%clk 0:02:57.4]} 13... h6 {[%clk 0:02:31.9]}
14. Rad1 {[%clk 0:02:54.3]} 14... Ne7 {[%clk 0:02:25.7]} 15. e4 {[%clk
0:02:52.6]} 15... Bc6 {[%clk 0:02:23.7]} 16. Ne5 {[%clk 0:02:46.4]} 16... Bb7
{[%clk 0:02:21.4]} 17. Rfe1 {[%clk 0:02:43.5]} 17... Qc8 {[%clk 0:02:03.9]} 18.
Re3 {[%clk 0:02:35.9]} 18... Nd7 {[%clk 0:02:00.3]} 19. Nxd7 {[%clk 0:02:03.4]}
19... Qxd7 {[%clk 0:01:59.9]} 20. Rg3 {[%clk 0:02:04]} 20... f6 {[%clk
0:01:47.1]} 21. Qc1 {[%clk 0:01:57.2]} 21... Kh8 {[%clk 0:01:42.7]} 22. d5
{[%clk 0:01:34.3]} 22... e5 {[%clk 0:01:41.1]} 23. Be2 {[%clk 0:01:25.9]} 23...
Nc8 {[%clk 0:01:16.3]} 24. Bg4 {[%clk 0:01:23.8]} 24... Qe7 {[%clk 0:01:12.5]}
25. Bb4 {[%clk 0:01:21.3]} 25... Nd6 {[%clk 0:01:11]} 26. Rc3 {[%clk 0:01:19.7]}
26... Rac8 {[%clk 0:01:02.9]} 27. Bxc8 {[%clk 0:01:18.1]} 27... Rxc8 {[%clk
0:01:02.3]} 28. Qe3 {[%clk 0:01:08.2]} 28... Qd7 {[%clk 0:01:00.1]} 29. Bxd6
{[%clk 0:01:05.8]} 29... cxd6 {[%clk 0:00:50.2]} 30. Rdc1 {[%clk 0:00:56.5]}
30... Rxc3 {[%clk 0:00:47.1]} 31. Qxc3 {[%clk 0:00:56.9]} 31... Qg4 {[%clk
0:00:43.2]} 32. Qc7 {[%clk 0:00:49.8]} 32... Qf4 {[%clk 0:00:42.3]} 33. Rf1
{[%clk 0:00:44.5]} 1-0

[Event "Early-Titled-Tuesday-Blitz-August-29-2023"]
[Site "Chess.com"]
[Date "2023.08.29"]
[Round "8"]
[White "MdChess1734"]
[Black "vishwa_vijeta"]
[Result "0-1"]
[WhiteElo "2360"]
[BlackElo "2522"]
[TimeControl "180+1"]
[EndTime "9:25:47 PDT"]
[Termination "vishwa_vijeta won on time"]

1. e4 {[%clk 0:03:00.9]} 1... c5 {[%clk 0:02:56.9]} 2. Nf3 {[%clk 0:02:58.8]}
2... d6 {[%clk 0:02:54.5]} 3. d4 {[%clk 0:02:59.1]} 3... cxd4 {[%clk 0:02:55.4]}
4. Nxd4 {[%clk 0:02:59.4]} 4... Nf6 {[%clk 0:02:55.9]} 5. Nc3 {[%clk 0:02:59.8]}
5... g6 {[%clk 0:02:56.8]} 6. Be3 {[%clk 0:02:58.1]} 6... Bg7 {[%clk 0:02:57]}
7. f3 {[%clk 0:02:56.2]} 7... O-O {[%clk 0:02:57.1]} 8. Bc4 {[%clk 0:02:56.8]}
8... Nc6 {[%clk 0:02:57.2]} 9. Qd2 {[%clk 0:02:56.9]} 9... Bd7 {[%clk 0:02:55]}
10. h4 {[%clk 0:02:56.6]} 10... h5 {[%clk 0:02:51]} 11. O-O-O {[%clk 0:02:55.2]}
11... Rc8 {[%clk 0:02:50.2]} 12. Bb3 {[%clk 0:02:52.2]} 12... Ne5 {[%clk
0:02:50.1]} 13. Bh6 {[%clk 0:02:24.1]} 13... a5 {[%clk 0:02:35.3]} 14. Bxg7
{[%clk 0:02:12.7]} 14... Kxg7 {[%clk 0:02:33]} 15. g4 {[%clk 0:02:12.8]} 15...
a4 {[%clk 0:02:10.7]} 16. Nxa4 {[%clk 0:00:56.8]} 16... Bxa4 {[%clk 0:01:47.6]}
17. Bxa4 {[%clk 0:00:55.8]} 17... Nc4 {[%clk 0:01:48.5]} 18. Qg5 {[%clk
0:00:35.6]} 18... Rc5 {[%clk 0:01:33.6]} 19. Nf5+ {[%clk 0:00:23.5]} 19... Kg8
{[%clk 0:01:32]} 20. gxh5 {[%clk 0:00:23.5]} 20... Nxh5 {[%clk 0:01:25.8]} 21.
Rhg1 {[%clk 0:00:17.4]} 21... e6 {[%clk 0:01:15]} 22. Qxh5 {[%clk 0:00:17]}
22... Qf6 {[%clk 0:01:14.9]} 23. Rd4 {[%clk 0:00:04.4]} 23... exf5 {[%clk
0:01:04.4]} 24. Rgd1 {[%clk 0:00:01.6]} 24... gxh5 {[%clk 0:01:03.6]} 0-1

[Event "Early-Titled-Tuesday-Blitz-August-29-2023"]
[Site "Chess.com"]
[Date "2023.08.29"]
[Round "8"]
[White "nassimzrikem"]
[Black "TigranHH"]
[Result "1-0"]
[WhiteElo "2091"]
[BlackElo "2242"]
[TimeControl "180+1"]
[EndTime "9:25:48 PDT"]
[Termination "nassimzrikem won by resignation"]

1. d4 {[%clk 0:03:00.9]} 1... Nf6 {[%clk 0:02:55.6]} 2. Nf3 {[%clk 0:02:59.8]}
2... d5 {[%clk 0:02:55.3]} 3. e3 {[%clk 0:02:59.3]} 3... Bf5 {[%clk 0:02:54.4]}
4. c4 {[%clk 0:03:00]} 4... e6 {[%clk 0:02:54.1]} 5. cxd5 {[%clk 0:03:00.6]}
5... exd5 {[%clk 0:02:54]} 6. Qb3 {[%clk 0:03:01.5]} 6... Qc8 {[%clk 0:02:53.3]}
7. Bd2 {[%clk 0:02:57.2]} 7... Bd6 {[%clk 0:02:53.2]} 8. Bb4 {[%clk 0:02:56.8]}
8... O-O {[%clk 0:02:47.3]} 9. Bxd6 {[%clk 0:02:56.5]} 9... cxd6 {[%clk
0:02:48.2]} 10. Nc3 {[%clk 0:02:55.9]} 10... Nc6 {[%clk 0:02:46]} 11. Be2 {[%clk
0:02:52.3]} 11... Na5 {[%clk 0:02:37.7]} 12. Qa4 {[%clk 0:02:47]} 12... Nc4
{[%clk 0:02:33.1]} 13. Nxd5 {[%clk 0:02:40.7]} 13... Nxd5 {[%clk 0:02:17.4]} 14.
Qxc4 {[%clk 0:02:40]} 14... Qe6 {[%clk 0:02:05.7]} 15. O-O {[%clk 0:02:35.9]}
15... Rac8 {[%clk 0:01:59.4]} 16. Qb5 {[%clk 0:02:36.1]} 16... Rc7 {[%clk
0:01:49.7]} 17. Rac1 {[%clk 0:02:30.8]} 17... Rxc1 {[%clk 0:01:47.3]} 18. Rxc1
{[%clk 0:02:29.8]} 18... Nxe3 {[%clk 0:01:48]} 19. Qxb7 {[%clk 0:02:05]} 19...
Nxg2 {[%clk 0:01:45.1]} 20. Kxg2 {[%clk 0:01:48.7]} 20... Qxe2 {[%clk
0:01:36.8]} 21. Re1 {[%clk 0:01:45.6]} 21... Qd3 {[%clk 0:01:26.6]} 22. Re3
{[%clk 0:01:42.4]} 22... Qd1 {[%clk 0:01:20.3]} 23. Qd5 {[%clk 0:01:26.7]} 23...
Bd3 {[%clk 0:01:18.4]} 24. Re1 {[%clk 0:01:25.1]} 24... Qc2 {[%clk 0:01:15.3]}
25. Qxd6 {[%clk 0:01:23.7]} 25... Qxb2 {[%clk 0:01:10]} 26. Ne5 {[%clk
0:01:14.6]} 26... Bf5 {[%clk 0:01:05.9]} 27. Nc6 {[%clk 0:01:07.9]} 27... Qd2
{[%clk 0:00:59]} 28. Ne7+ {[%clk 0:01:06.9]} 28... Kh8 {[%clk 0:00:59]} 29. Ng6+
{[%clk 0:01:06.4]} 29... hxg6 {[%clk 0:00:56.8]} 30. Qxf8+ {[%clk 0:01:06]}
30... Kh7 {[%clk 0:00:57.5]} 31. Qe7 {[%clk 0:00:53.8]} 31... Qxd4 {[%clk
0:00:50.9]} 32. Re3 {[%clk 0:00:42.6]} 32... Qd5+ {[%clk 0:00:47]} 33. Kg3
{[%clk 0:00:38.9]} 33... Qxa2 {[%clk 0:00:44.1]} 34. Qh4+ {[%clk 0:00:39]} 1-0

[Event "Early-Titled-Tuesday-Blitz-August-29-2023"]
[Site "Chess.com"]
[Date "2023.08.29"]
[Round "8"]
[White "Nathan_Filgueiras"]
[Black "Vanina1989"]
[Result "0-1"]
[WhiteElo "2527"]
[BlackElo "2691"]
[TimeControl "180+1"]
[EndTime "9:25:53 PDT"]
[Termination "Vanina1989 won by resignation"]

1. e4 {[%clk 0:03:00.9]} 1... c6 {[%clk 0:03:00]} 2. d4 {[%clk 0:03:00.8]} 2...
d5 {[%clk 0:03:00.2]} 3. e5 {[%clk 0:02:58.5]} 3... c5 {[%clk 0:02:57.9]} 4.
dxc5 {[%clk 0:02:56.2]} 4... e6 {[%clk 0:02:56.5]} 5. Be3 {[%clk 0:02:55.9]}
5... Nd7 {[%clk 0:02:51.2]} 6. Bb5 {[%clk 0:02:31.9]} 6... Ne7 {[%clk
0:02:49.6]} 7. Bd4 {[%clk 0:02:21.6]} 7... Nc6 {[%clk 0:02:33.6]} 8. c3 {[%clk
0:02:19.7]} 8... Bxc5 {[%clk 0:02:28.6]} 9. Nf3 {[%clk 0:02:16]} 9... Nxd4
{[%clk 0:02:28]} 10. cxd4 {[%clk 0:02:12.9]} 10... Qa5+ {[%clk 0:02:23.1]} 11.
Nc3 {[%clk 0:02:12.3]} 11... Bb4 {[%clk 0:02:23.5]} 12. Qd2 {[%clk 0:01:45.6]}
12... O-O {[%clk 0:02:17.7]} 13. Bxd7 {[%clk 0:01:45.1]} 13... Bxd7 {[%clk
0:02:17.2]} 14. O-O {[%clk 0:01:45.7]} 14... Rac8 {[%clk 0:02:16.8]} 15. Rfc1
{[%clk 0:01:44.2]} 15... Rc4 {[%clk 0:02:14.9]} 16. a3 {[%clk 0:01:43.9]} 16...
Be7 {[%clk 0:02:06]} 17. b4 {[%clk 0:01:39.7]} 17... Qc7 {[%clk 0:02:01.6]} 18.
Ne2 {[%clk 0:01:32.9]} 18... Rc8 {[%clk 0:02:00.7]} 19. Rxc4 {[%clk 0:01:33]}
19... dxc4 {[%clk 0:01:53.3]} 20. Nc3 {[%clk 0:01:29.7]} 20... Bc6 {[%clk
0:01:51.6]} 21. Rd1 {[%clk 0:01:24.1]} 21... Rd8 {[%clk 0:01:44.8]} 22. Qe3
{[%clk 0:01:20.6]} 22... b5 {[%clk 0:01:42.5]} 23. Nd2 {[%clk 0:01:17.9]} 23...
a5 {[%clk 0:01:42.2]} 24. Rb1 {[%clk 0:01:01.6]} 24... axb4 {[%clk 0:01:38.5]}
25. axb4 {[%clk 0:01:02.5]} 25... Qa7 {[%clk 0:01:38.2]} 26. d5 {[%clk
0:00:21.2]} 26... Qxe3 {[%clk 0:01:37.4]} 27. fxe3 {[%clk 0:00:22.1]} 27... Bxd5
{[%clk 0:01:28.8]} 28. Nxd5 {[%clk 0:00:12.6]} 28... Rxd5 {[%clk 0:01:28.1]} 29.
Nf3 {[%clk 0:00:12.7]} 29... h5 {[%clk 0:01:24.5]} 30. Kf2 {[%clk 0:00:12]}
30... g5 {[%clk 0:01:23.6]} 31. Ke2 {[%clk 0:00:11.1]} 31... Kg7 {[%clk
0:01:21.8]} 32. Nd4 {[%clk 0:00:11.6]} 32... Bf8 {[%clk 0:01:17.6]} 33. Nc2
{[%clk 0:00:11.5]} 33... Rxe5 {[%clk 0:01:15.6]} 34. Ra1 {[%clk 0:00:12.2]}
34... Rd5 {[%clk 0:01:13.5]} 35. Ra7 {[%clk 0:00:12.1]} 35... c3 {[%clk
0:01:12.7]} 36. Rc7 {[%clk 0:00:10.7]} 36... Rd2+ {[%clk 0:01:11.4]} 0-1

[Event "Early-Titled-Tuesday-Blitz-August-29-2023"]
[Site "Chess.com"]
[Date "2023.08.29"]
[Round "8"]
[White "slidingknight2775"]
[Black "colegiodemadrid"]
[Result "1-0"]
[WhiteElo "2575"]
[BlackElo "2438"]
[TimeControl "180+1"]
[EndTime "9:25:53 PDT"]
[Termination "slidingknight2775 won by resignation"]

1. d4 {[%clk 0:03:00.9]} 1... Nf6 {[%clk 0:02:59.2]} 2. c4 {[%clk 0:03:01.5]}
2... g6 {[%clk 0:02:59.6]} 3. Nc3 {[%clk 0:03:01.6]} 3... Bg7 {[%clk 0:03:00.1]}
4. Nf3 {[%clk 0:03:02]} 4... d6 {[%clk 0:03:00.7]} 5. Bg5 {[%clk 0:03:02]} 5...
O-O {[%clk 0:03:01.3]} 6. e3 {[%clk 0:03:02]} 6... h6 {[%clk 0:03:01.5]} 7. Bh4
{[%clk 0:03:01.6]} 7... g5 {[%clk 0:03:02.2]} 8. Bg3 {[%clk 0:03:01.7]} 8... c5
{[%clk 0:03:03]} 9. Qc2 {[%clk 0:02:51.9]} 9... Nh5 {[%clk 0:02:55.5]} 10. Be2
{[%clk 0:02:31.5]} 10... Nxg3 {[%clk 0:02:54.3]} 11. hxg3 {[%clk 0:02:32.4]}
11... cxd4 {[%clk 0:02:53.7]} 12. exd4 {[%clk 0:02:14.8]} 12... Nc6 {[%clk
0:02:53.4]} 13. Nxg5 {[%clk 0:02:05.7]} 13... f5 {[%clk 0:02:45.8]} 14. Nf3
{[%clk 0:02:03.2]} 14... Nxd4 {[%clk 0:02:40.8]} 15. Nxd4 {[%clk 0:02:02.2]}
15... Bxd4 {[%clk 0:02:41.4]} 16. Rxh6 {[%clk 0:02:01.5]} 16... Kg7 {[%clk
0:02:42]} 17. Qd2 {[%clk 0:01:52.6]} 17... Bf6 {[%clk 0:02:42.2]} 18. Nd5 {[%clk
0:01:44]} 18... Rh8 {[%clk 0:02:24.8]} 19. Rxh8 {[%clk 0:01:24.8]} 19... Qxh8
{[%clk 0:02:24.1]} 20. Nxf6 {[%clk 0:01:21.9]} 20... Kxf6 {[%clk 0:02:25]} 21.
Qd4+ {[%clk 0:01:17.9]} 21... e5 {[%clk 0:02:25.3]} 22. Qxd6+ {[%clk 0:01:18]}
22... Be6 {[%clk 0:02:25.4]} 23. O-O-O {[%clk 0:01:14.8]} 23... Rc8 {[%clk
0:02:23.5]} 24. Kb1 {[%clk 0:01:11.3]} 24... Rc6 {[%clk 0:02:22.9]} 25. Qd2
{[%clk 0:01:02.5]} 25... a6 {[%clk 0:02:15.6]} 26. b3 {[%clk 0:00:57.7]} 26...
Rc7 {[%clk 0:02:11.3]} 27. f4 {[%clk 0:00:50.8]} 27... Rd7 {[%clk 0:02:09]} 28.
Qc3 {[%clk 0:00:43.1]} 28... Rxd1+ {[%clk 0:02:08.2]} 29. Bxd1 {[%clk 0:00:44]}
29... Kf7 {[%clk 0:02:08.2]} 30. Qxe5 {[%clk 0:00:40.1]} 30... Qxe5 {[%clk
0:02:08]} 31. fxe5 {[%clk 0:00:41]} 31... Bc8 {[%clk 0:02:07.6]} 32. Kc2 {[%clk
0:00:32.9]} 32... Ke6 {[%clk 0:02:07.7]} 33. Kd3 {[%clk 0:00:30.8]} 33... Kxe5
{[%clk 0:02:07.9]} 34. Ke3 {[%clk 0:00:31.4]} 34... b6 {[%clk 0:02:07]} 35. Bf3
{[%clk 0:00:31]} 35... a5 {[%clk 0:02:06.4]} 36. a3 {[%clk 0:00:28.2]} 36... Be6
{[%clk 0:02:05.3]} 37. Bd5 {[%clk 0:00:26]} 37... Bd7 {[%clk 0:01:55.3]} 38. b4
{[%clk 0:00:23.3]} 38... axb4 {[%clk 0:01:53.1]} 39. axb4 {[%clk 0:00:24.2]}
39... b5 {[%clk 0:01:54]} 40. Bg8 {[%clk 0:00:22.6]} 40... bxc4 {[%clk
0:01:53.5]} 41. Bxc4 {[%clk 0:00:23.5]} 41... Bc6 {[%clk 0:01:53.8]} 42. Bf1
{[%clk 0:00:23.2]} 42... Bb7 {[%clk 0:01:52.8]} 43. b5 {[%clk 0:00:21.4]} 43...
Bd5 {[%clk 0:01:51.6]} 44. b6 {[%clk 0:00:13]} 44... Bb7 {[%clk 0:01:51.3]} 45.
Be2 {[%clk 0:00:11.7]} 45... Kd6 {[%clk 0:01:48]} 46. Bf3 {[%clk 0:00:11.5]}
46... Bxf3 {[%clk 0:01:46.8]} 47. gxf3 {[%clk 0:00:11.8]} 47... Kc6 {[%clk
0:01:47.3]} 48. Kf4 {[%clk 0:00:12.4]} 48... Kxb6 {[%clk 0:01:48]} 49. Kxf5
{[%clk 0:00:13.3]} 49... Kc7 {[%clk 0:01:48.8]} 50. g4 {[%clk 0:00:14.2]} 50...
Kd8 {[%clk 0:01:49.5]} 51. g5 {[%clk 0:00:15.1]} 51... Ke8 {[%clk 0:01:50.4]}
52. f4 {[%clk 0:00:16]} 52... Kf8 {[%clk 0:01:51.3]} 53. Kg4 {[%clk 0:00:16.9]}
53... Kg8 {[%clk 0:01:52.2]} 54. f5 {[%clk 0:00:17.8]} 54... Kf8 {[%clk
0:01:53.1]} 55. g6 {[%clk 0:00:18.7]} 55... Kg8 {[%clk 0:01:54]} 56. Kf4 {[%clk
0:00:19.6]} 56... Kf8 {[%clk 0:01:54.9]} 57. Kg5 {[%clk 0:00:20.5]} 57... Kg7
{[%clk 0:01:55.8]} 58. f6+ {[%clk 0:00:21.3]} 58... Kf8 {[%clk 0:01:56.7]} 59.
Kf5 {[%clk 0:00:21.1]} 59... Kg8 {[%clk 0:01:57.6]} 60. Ke6 {[%clk 0:00:21.5]}
60... Kf8 {[%clk 0:01:58.5]} 61. g7+ {[%clk 0:00:21.9]} 61... Kg8 {[%clk
0:01:59.4]} 62. f7+ {[%clk 0:00:22.4]} 62... Kxg7 {[%clk 0:01:59.9]} 63. Ke7
{[%clk 0:00:23]} 63... Kh7 {[%clk 0:01:59.7]} 64. f8=Q {[%clk 0:00:23.4]} 1-0